bitfinex/quotes_SOLUSD_20250922
["timestamp","ask_amount","ask_price","bid_price","bid_amount"]
[1758544028767,1e-08,222.28,222.27,135.7336985]
[1758544034478,0.67,222.41,222.38,39.49665792]
[1758544034984,1.35907179,222.42,222.38,39.49665792]
[1758544035194,0.7,222.41,222.38,39.49665792]
[1758544036800,1.35907179,222.39,222.36,80.59999999]
[1758544036989,1.35907179,222.39,222.37,34.98]
[1758544036990,0.7,222.38,222.37,34.98]
[1758544038098,0.7,222.38,222.36,80.59999999]
[1758544038397,0.7,222.38,222.37,34.96]
[1758544039105,6.55587905,222.38,222.37,34.96]
[1758544039401,2.05907179,222.38,222.37,34.96]
[1758544039980,1.35907179,222.4,222.37,34.96]
[1758544040394,1.35907179,222.4,222.37,39.45699065]
[1758544040596,2.05907179,222.4,222.37,39.45699065]
[1758544041596,4.49617693,222.42,222.38,0.68]
[1758544041898,1.35907179,222.42,222.39,34.94]
[1758544042300,5.19579257,222.44,222.39,34.94]
[1758544042497,1.35907179,222.42,222.39,34.94]
[1758544043628,1.35907179,222.43,222.39,35.62]
[1758544044517,5.85448269,222.45,222.4,14.27559401]
[1758544044802,6.55448269,222.45,222.41,34.94]
[1758544045513,5.1954109,222.45,222.41,34.94]
[1758544045674,6.55448269,222.45,222.41,34.94]
[1758544046180,1.35907179,222.45,222.41,35.62]
[1758544046904,5.2952159,222.46,222.42,14.27559401]
[1758544046905,0.1,222.46,222.42,14.27559401]
[1758544047112,0.1,222.46,222.43,35.64]
[1758544047707,0.1,222.46,222.44,0.7]
[1758544047878,1.45907179,222.46,222.42,14.29559401]
[1758544048079,1.35907179,222.44,222.41,13.59559401]
[1758544048393,0.7,222.43,222.4,34.94]
[1758544048588,1.35907179,222.41,222.39,80.59999999]
[1758544048894,0.7,222.4,222.35,14.29559401]
[1758544049210,1.35907179,222.37,222.36,34.96]
[1758544049386,1.35907179,222.37,222.35,34.96]
[1758544049902,1.35907179,222.4,222.36,0.7]
[1758544050198,1.35907179,222.38,222.37,34.96]
[1758544052492,0.7,222.4,222.37,34.96]
[1758544052820,1.35907179,222.38,222.37,34.96]
[1758544053197,30.49571055,222.44,222.37,40.15692411]
[1758544053382,1.35907179,222.44,222.38,14.29559401]
[1758544053587,1.35907179,222.44,222.4,13.59559401]
[1758544053888,1.35907179,222.44,222.41,35.66]
[1758544054495,1.35907179,222.44,222.42,34.96]
[1758544054894,4.59521201,222.46,222.42,34.96]
[1758544055194,1.35907179,222.44,222.42,34.96]
[1758544055592,4.59521201,222.46,222.36,4.49701639]
[1758544055810,1.35907179,222.41,222.38,13.59559401]
[1758544056112,1.35907179,222.41,222.39,34.96]
[1758544056306,4.49579643,222.43,222.39,34.96]
[1758544056507,1.35907179,222.42,222.39,35.66]
[1758544057112,1.35907179,222.42,222.39,34.96]
[1758544057312,1.35907179,222.4,222.34,0.7]
[1758544057492,1.35907179,222.4,222.35,48.55559401]
[1758544057692,1.35907179,222.4,222.36,0.7]
[1758544058300,1.35907179,222.4,222.37,35.66]
[1758544059696,1.35907179,222.4,222.35,13.59559401]
[1758544059892,2.05907179,222.4,222.36,34.96]
[1758544060385,5.85557995,222.4,222.36,34.96]
[1758544060585,5.85557995,222.4,222.37,0.7]
[1758544060815,5.85557995,222.4,222.37,81.29999999]
[1758544061314,5.85557995,222.4,222.37,80.59999999]
[1758544061487,5.85557995,222.4,222.37,34.94]
[1758544061488,4.49650816,222.4,222.37,34.94]
[1758544061808,1.35907179,222.38,222.37,34.94]
[1758544065903,6.55587905,222.38,222.33,94.195594]
[1758544066107,5.85587905,222.38,222.35,13.59559401]
[1758544066307,5.85587905,222.38,222.35,14.29559401]
[1758544066511,5.85593247,222.38,222.35,14.29559401]
[1758544066710,1.35907179,222.36,222.35,80.59999999]
[1758544066896,1.35907179,222.36,222.33,13.59559401]
[1758544067096,5.85647721,222.36,222.34,34.9]
[1758544067606,6.55647721,222.36,222.34,80.59999999]
[1758544068791,26.0,222.4,222.35,0.7]
[1758544069000,1.35907179,222.37,222.35,0.7]
[1758544069204,1.35907179,222.37,222.35,34.9]
[1758544070405,1.35907179,222.37,222.35,35.6]
[1758544070608,0.7,222.4,222.35,35.6]
[1758544070916,1.35907179,222.36,222.35,35.6]
[1758544071089,1.35907179,222.36,222.35,34.9]
[1758544071290,5.85587905,222.38,222.35,34.9]
[1758544071514,6.55587905,222.38,222.34,115.49999999]
[1758544071900,5.85587905,222.38,222.34,116.19999999]
[1758544073118,6.55587905,222.38,222.34,116.19999999]
[1758544073698,4.49680726,222.38,222.34,116.19999999]
[1758544073898,5.85587905,222.38,222.34,116.19999999]
[1758544074306,4.49680726,222.38,222.34,116.19999999]
[1758544074523,5.85587905,222.38,222.34,116.19999999]
[1758544075018,5.85587905,222.38,222.34,115.49999999]
[1758544075320,1.35907179,222.36,222.31,81.29999999]
[1758544075514,1.35907179,222.36,222.32,35.6]
[1758544075714,4.49741398,222.35,222.32,35.6]
[1758544076104,17.10002073,222.35,222.32,35.6]
[1758544076303,1.35907179,222.33,222.31,34.9]
[1758544076517,2.05907179,222.33,222.26,94.89559401]
[1758544076824,2.12208598,222.32,222.27,35.6]
[1758544077023,2.12208598,222.32,222.28,0.67]
[1758544077229,2.12208598,222.32,222.29,34.9]
[1758544077401,2.12208598,222.32,222.29,35.57]
[1758544078131,4.4982232,222.31,222.27,0.67]
[1758544078301,4.4982232,222.31,222.29,34.9]
[1758544079410,2.12208598,222.3,222.28,34.9]
[1758544079609,2.12208598,222.3,222.26,81.27]
[1758544079801,15.7437812,222.31,222.27,35.57]
[1758544080006,11.245558,222.31,222.28,0.67]
[1758544080220,13.36764398,222.31,222.27,34.9]
[1758544080424,13.36764398,222.31,222.27,35.57]
[1758544081327,17.86586718,222.31,222.27,35.57]
[1758544081505,2.12208598,222.29,222.27,35.57]
[1758544081700,11.24437545,222.34,222.28,0.67]
[1758544081930,2.12208598,222.31,222.28,0.67]
[1758544082107,2.12208598,222.3,222.28,0.67]
[1758544082309,2.12208598,222.3,222.28,34.9]
[1758544082609,2.12208598,222.3,222.26,35.57]
[1758544082822,2.12208598,222.29,222.26,35.57]
[1758544083104,2.12208598,222.29,222.23,94.02788497]
[1758544083105,2.12208598,222.27,222.23,0.67]
[1758544083317,6.62159205,222.25,222.22,34.9]
[1758544083521,6.62159205,222.25,222.22,35.57]
[1758544083921,2.12208598,222.23,222.22,34.9]
[1758544084311,2.12208598,222.25,222.22,35.57]
[1758544085239,2.12208598,222.26,222.22,34.9]
[1758544085408,6.62130975,222.27,222.23,0.67]
[1758544085934,7.31130975,222.27,222.23,0.67]
[1758544086434,6.62130975,222.27,222.23,0.67]
[1758544087420,6.62130975,222.27,222.23,81.27]
[1758544087927,6.62130975,222.27,222.23,80.6]
[1758544088125,7.31130975,222.27,222.23,80.6]
[1758544088324,7.31130975,222.27,222.23,81.27]
[1758544088534,2.12208598,222.25,222.23,80.6]
[1758544090038,2.12208598,222.25,222.24,0.67]
[1758544090342,2.12208598,222.25,222.23,80.6]
[1758544090518,2.12208598,222.25,222.23,81.27]
[1758544090717,6.62156151,222.25,222.23,81.27]
[1758544090917,6.62156151,222.25,222.23,80.6]
[1758544091518,6.62156151,222.25,222.23,81.27]
[1758544092926,15.74601841,222.28,222.23,81.27]
[1758544093130,2.12208598,222.25,222.23,81.27]
[1758544094345,4.49935503,222.26,222.23,81.27]
[1758544094529,2.12208598,222.25,222.23,81.27]
[1758544095024,2.12208598,222.25,222.23,116.19]
[1758544095224,4.49935503,222.26,222.24,0.71]
[1758544095531,2.82208598,222.25,222.21,35.63]
[1758544095837,2.12208598,222.25,222.21,35.63]
[1758544096443,4.49964002,222.24,222.21,35.63]
[1758544097131,4.49947197,222.25,222.22,0.71]
[1758544097331,6.62155795,222.25,222.23,0.71]
[1758544098538,6.62155795,222.25,222.21,34.92]
[1758544098848,4.49947197,222.25,222.22,0.71]
[1758544099053,6.62155795,222.25,222.22,0.71]
[1758544099243,6.62155795,222.25,222.22,35.63]
[1758544100127,6.62155795,222.25,222.23,0.71]
[1758544101435,6.62155795,222.25,222.19,4.50063692]
[1758544101436,6.62155795,222.25,222.21,0.71]
[1758544101657,6.62155795,222.25,222.22,0.71]
[1758544101952,4.4988303,222.28,222.22,0.71]
[1758544102149,6.62091628,222.28,222.22,0.71]
[1758544102458,6.62091628,222.28,222.22,81.31]
[1758544102641,6.62091628,222.28,222.23,0.71]
[1758544105633,6.62091628,222.28,222.24,34.92]
[1758544105830,6.62091628,222.28,222.25,0.71]
[1758544108930,6.62091628,222.28,222.26,0.7]
[1758544109357,6.62091628,222.28,222.24,116.22]
[1758544109658,6.62091628,222.28,222.25,0.7]
[1758544109860,6.62091628,222.28,222.24,115.52]
[1758544110068,7.32091628,222.28,222.24,116.22]
[1758544111349,5.1988303,222.28,222.24,116.22]
[1758544111556,6.62130012,222.27,222.24,116.22]
[1758544113365,4.49886409,222.28,222.24,115.52]
[1758544113565,2.12208598,222.27,222.25,0.7]
[1758544113864,2.12208598,222.27,222.26,0.7]
[1758544114044,2.12208598,222.27,222.24,115.52]
[1758544114247,2.12208598,222.27,222.24,116.22]
[1758544114968,6.62115721,222.27,222.25,0.7]
[1758544115268,26.7,222.3,222.25,0.7]
[1758544115569,6.62075083,222.29,222.25,0.7]
[1758544117458,6.62075083,222.29,222.26,0.7]
[1758544117650,6.62075083,222.29,222.27,0.7]
[1758544118164,6.62075083,222.29,222.24,115.52]
[1758544118369,2.12208598,222.33,222.25,51.33767999]
[1758544118572,2.12208598,222.33,222.26,0.7]
[1758544118868,2.12208598,222.33,222.27,34.92]
[1758544119064,2.12208598,222.33,222.28,0.7]
[1758544119261,6.61990453,222.33,222.29,34.92]
[1758544119565,6.61990453,222.33,222.29,35.62]
[1758544119765,4.49721172,222.36,222.3,0.7]
[1758544120068,2.12208598,222.35,222.3,0.7]
[1758544120475,2.12208598,222.35,222.31,0.7]
[1758544121174,2.82208598,222.35,222.31,0.7]
[1758544121369,4.49761626,222.34,222.31,0.7]
[1758544121572,5.19761626,222.34,222.29,35.62]
[1758544121761,2.12208598,222.33,222.3,0.7]
[1758544122865,4.49802087,222.32,222.3,0.7]
[1758544123471,4.49802087,222.32,222.29,34.92]
[1758544123861,4.49802087,222.32,222.25,98.69483745]
[1758544124058,2.82208598,222.31,222.23,80.6]
[1758544124257,2.12208598,222.26,222.23,81.3]
[1758544124484,2.12208598,222.26,222.24,0.7]
[1758544125972,2.12208598,222.27,222.24,0.7]
[1758544127184,6.6211195,222.27,222.24,0.7]
[1758544128181,6.6211195,222.27,222.23,80.6]
[1758544128479,7.3211195,222.27,222.23,80.6]
[1758544128978,7.3211195,222.27,222.23,81.3]
[1758544129365,2.12208598,222.25,222.23,80.6]
[1758544129672,0.7,222.24,222.23,80.6]
[1758544129983,2.12208598,222.25,222.23,80.6]
[1758544130287,0.7,222.24,222.23,80.6]
[1758544130699,2.12208598,222.25,222.23,80.6]
[1758544131297,4.49943757,222.25,222.23,81.3]
[1758544131454,2.12208598,222.24,222.23,80.6]
[1758544133563,6.621726,222.24,222.23,80.6]
[1758544134862,6.621726,222.24,222.21,35.62]
[1758544135205,2.12208598,222.24,222.22,0.7]
[1758544135363,6.62174291,222.24,222.23,0.7]
[1758544136380,2.12208598,222.24,222.23,0.7]
[1758544136583,1.35870668,222.26,222.23,0.7]
[1758544137573,5.85794688,222.26,222.23,0.7]
[1758544137772,7.53280246,222.28,222.23,0.7]
[1758544137977,8.89150914,222.28,222.23,35.62]
[1758544138162,4.3924786,222.28,222.24,0.69]
[1758544138363,1.35870668,222.28,222.25,34.92]
[1758544138558,1.35870668,222.28,222.26,0.69]
[1758544138786,1.35870668,222.28,222.27,0.69]
[1758544138976,1.35870668,222.28,222.25,35.61]
[1758544139174,1.35870668,222.28,222.25,34.92]
[1758544139377,1.35870668,222.28,222.26,0.69]
[1758544140886,1.35870668,222.28,222.27,0.69]
[1758544141070,1.35870668,222.28,222.25,35.61]
[1758544141271,1.35870668,222.28,222.26,0.69]
[1758544141693,5.85758804,222.28,222.26,0.69]
[1758544141990,4.49881922,222.33,222.23,81.29]
[1758544141991,4.49923513,222.26,222.23,81.29]
[1758544142568,1.35870668,222.25,222.23,81.29]
[1758544143191,1.35870668,222.25,222.23,80.6]
[1758544143482,1.35870668,222.24,222.23,80.6]
[1758544144299,5.8583467,222.24,222.23,80.6]
[1758544144662,4.49923513,222.26,222.23,80.6]
[1758544144867,1.35870668,222.25,222.23,80.6]
[1758544145087,1.35870668,222.25,222.21,80.6]
[1758544145388,1.35870668,222.22,222.21,80.6]
[1758544145990,1.35870668,222.24,222.21,81.29]
[1758544146289,1.35870668,222.24,222.22,35.59]
[1758544146869,5.85838077,222.24,222.22,0.69]
[1758544147068,6.52838077,222.24,222.2,115.5]
[1758544147278,1.35870668,222.23,222.21,0.69]
[1758544147479,4.49967409,222.24,222.21,0.69]
[1758544147790,1.35870668,222.23,222.21,0.69]
[1758544148198,5.85854986,222.23,222.21,0.69]
[1758544148373,5.85854986,222.23,222.2,115.5]
[1758544148574,4.49984318,222.23,222.2,115.5]
[1758544148774,5.85854986,222.23,222.2,116.19]
[1758544149194,4.49984318,222.23,222.2,116.19]
[1758544149588,4.49984318,222.23,222.2,115.5]
[1758544150098,4.49984318,222.23,222.2,116.19]
[1758544151287,15.74828962,222.25,222.2,116.19]
[1758544151596,1.35870668,222.27,222.2,116.19]
[1758544151597,11.24885205,222.28,222.22,1.35870668]
[1758544151774,26.0,222.27,222.23,35.59]
[1758544152086,26.0,222.27,222.24,0.69]
[1758544154697,4.49923513,222.26,222.24,0.69]
[1758544155005,4.49923513,222.26,222.23,115.5]
[1758544155183,4.49923513,222.26,222.23,116.16]
[1758544156772,4.49923513,222.26,222.24,0.66]
[1758544157610,4.4988303,222.28,222.23,115.5]
[1758544157786,5.2188303,222.28,222.24,0.66]
[1758544158608,16.46590606,222.28,222.23,115.5]
[1758544158907,0.72,222.27,222.23,115.5]
[1758544159099,0.72,222.26,222.23,115.5]
[1758544159402,17.10461274,222.28,222.23,81.26]
[1758544159403,16.46590606,222.28,222.23,81.26]
[1758544159594,16.46590606,222.28,222.24,35.56]
[1758544161687,4.49923513,222.26,222.24,34.9]
[1758544163739,4.49964002,222.24,222.23,80.6]
[1758544164012,5.21964002,222.24,222.23,80.6]
[1758544164307,4.49964002,222.24,222.23,80.6]
[1758544164482,4.49964002,222.24,222.2,116.16]
[1758544164683,15.74874009,222.24,222.2,116.16]
[1758544164904,16.46874009,222.24,222.2,116.16]
[1758544165907,15.74874009,222.24,222.2,115.5]
[1758544166113,0.72,222.23,222.18,0.66]
[1758544166307,0.72,222.23,222.19,34.9]
[1758544166508,0.72,222.23,222.19,0.66]
[1758544166697,2.07870668,222.23,222.19,0.66]
[1758544167004,2.07870668,222.23,222.18,115.5]
[1758544167205,15.7501575,222.22,222.18,116.17]
[1758544167903,15.7501575,222.22,222.19,0.67]
[1758544169211,11.2501125,222.22,222.19,0.67]
[1758544170307,4.49945055,222.25,222.21,1.35870668]
[1758544170514,4.49921568,222.27,222.23,1.35870668]
[1758544170693,4.49921568,222.27,222.24,0.67]
[1758544170893,4.49921568,222.27,222.25,0.67]
[1758544171093,4.49921568,222.27,222.23,1.35870668]
[1758544171412,11.247478,222.28,222.24,0.67]
[1758544171721,3.03425505,222.27,222.24,0.67]
[1758544173194,4.49923513,222.26,222.24,0.67]
[1758544174115,0.68,222.25,222.22,34.9]
[1758544174417,4.393351,222.25,222.2,115.5]
[1758544174598,4.49923513,222.26,222.22,0.67]
[1758544174997,4.49923513,222.26,222.22,2.02870668]
[1758544175217,4.49923513,222.26,222.23,0.67]
[1758544175403,26.0,222.26,222.23,0.67]
[1758544175801,41.74661446,222.27,222.23,0.67]
[1758544176010,3.03451369,222.26,222.23,0.67]
[1758544176401,3.71451369,222.26,222.21,0.67]
[1758544176604,5.07322037,222.26,222.21,35.57]
[1758544177005,0.68,222.25,222.21,0.67]
[1758544177315,4.49964002,222.24,222.21,0.67]
[1758544177525,4.49964002,222.24,222.2,115.5]
[1758544177724,4.49964002,222.24,222.2,116.17]
[1758544178523,7.5347092,222.24,222.2,116.17]
[1758544178898,18.78380927,222.24,222.2,116.17]
[1758544179100,15.74874009,222.24,222.2,116.17]
[1758544179622,15.74874009,222.24,222.21,0.67]
[1758544180195,15.74874009,222.24,222.2,115.5]
[1758544180196,16.42874009,222.24,222.2,115.5]
[1758544180600,3.71501695,222.23,222.2,80.6]
[1758544181201,0.68,222.22,222.18,0.67]
[1758544181423,4.39372363,222.23,222.18,35.57]
[1758544181625,5.07372363,222.23,222.18,34.9]
[1758544181926,5.07372363,222.23,222.19,0.67]
[1758544182297,4.39372363,222.23,222.2,0.67]
[1758544183132,4.500045,222.22,222.2,0.67]
[1758544183424,1.35870668,222.21,222.16,80.6]
[1758544183608,1.35870668,222.19,222.16,115.5]
[1758544183804,1.35870668,222.19,222.17,0.67]
[1758544184503,1.35870668,222.19,222.16,115.5]
[1758544184714,4.50085516,222.18,222.16,115.5]
[1758544184900,4.00085516,222.18,222.16,115.5]
[1758544185731,4.00085516,222.18,222.16,34.9]
[1758544186031,4.00085516,222.18,222.15,0.67]
[1758544186270,1.35870668,222.17,222.11,0.67]
[1758544186401,1.35870668,222.15,222.12,34.9]
[1758544187828,1.35870668,222.15,222.12,35.57]
[1758544188525,1.35870668,222.15,222.08,13.25573964]
[1758544188526,4.50166561,222.14,222.13,0.67]
[1758544188923,4.50166561,222.14,222.11,0.67]
[1758544189119,4.50166561,222.14,222.12,0.67]
[1758544189423,15.75582965,222.14,222.1,35.57]
[1758544189623,15.75582965,222.14,222.11,0.67]
[1758544190035,15.75582965,222.14,222.1,34.9]
[1758544190242,15.75582965,222.14,222.11,0.67]
[1758544190552,15.75582965,222.14,222.12,0.67]
[1758544190845,4.50166561,222.14,222.13,0.67]
[1758544191056,4.50126035,222.16,222.13,0.67]
[1758544191228,4.50126035,222.16,222.13,81.27]
[1758544191420,4.50126035,222.16,222.14,0.67]
[1758544192339,4.50085516,222.18,222.15,0.67]
[1758544194144,4.50085516,222.18,222.13,115.5]
[1758544194348,15.75299306,222.18,222.15,0.67]
[1758544194525,15.75299306,222.18,222.13,115.5]
[1758544194725,15.75299306,222.18,222.14,0.67]
[1758544195144,15.75299306,222.18,222.15,0.67]
[1758544195847,15.75299306,222.18,222.13,115.5]
[1758544196027,15.75299306,222.18,222.14,0.67]
[1758544197250,2.02870668,222.17,222.13,80.6]
[1758544197449,0.67,222.16,222.13,80.6]
[1758544198343,16.42299306,222.18,222.13,81.3]
[1758544198534,2.12514774,222.16,222.13,81.3]
[1758544199538,4.50146297,222.15,222.13,80.6]
[1758544200241,2.79514774,222.14,222.13,80.6]
[1758544200428,2.79514774,222.14,222.09,34.9]
[1758544200633,2.12514774,222.12,222.08,34.9]
[1758544200833,2.12514774,222.12,222.08,35.6]
[1758544201349,2.12514774,222.12,222.09,0.7]
[1758544201554,2.12514774,222.14,222.1,0.7]
[1758544201752,2.12514774,222.14,222.08,34.9]
[1758544202058,2.12514774,222.14,222.11,0.7]
[1758544202228,37.25256379,222.18,222.12,0.7]
[1758544202431,39.37771153,222.18,222.12,0.7]
[1758544203446,4.50105774,222.17,222.12,0.7]
[1758544203646,4.50105774,222.17,222.13,0.7]
[1758544203852,15.75370211,222.17,222.13,0.7]
[1758544206048,16.42370211,222.17,222.13,0.7]
[1758544207054,2.79514774,222.16,222.11,80.6]
[1758544207259,2.12514774,222.14,222.11,80.6]
[1758544207456,2.12514774,222.14,222.11,81.3]
[1758544207650,6.62699315,222.14,222.11,81.3]
[1758544208445,4.50149893,222.15,222.12,0.7]
[1758544209049,4.50114172,222.17,222.13,0.7]
[1758544209250,4.50114172,222.17,222.14,0.7]
[1758544210644,4.50114172,222.17,222.12,35.58]
[1758544210845,0.67,222.16,222.12,35.58]
[1758544211164,0.67,222.15,222.11,80.6]
[1758544211361,0.67,222.14,222.11,80.6]
[1758544212066,4.50186827,222.13,222.09,116.18]
[1758544212242,4.50186827,222.13,222.1,0.7]
[1758544212661,5.82293464,222.12,222.05,0.2]
[1758544212859,2.12514774,222.08,222.05,0.2]
[1758544214061,4.50308461,222.07,222.05,0.2]
[1758544215657,6.62823235,222.07,222.05,0.2]
[1758544216565,3.0277869,222.09,222.05,0.2]
[1758544216755,2.12514774,222.09,222.06,0.67]
[1758544217067,2.12514774,222.09,222.05,0.2]
[1758544217250,2.12514774,222.09,222.05,0.87]
[1758544217844,6.62790231,222.09,222.05,0.87]
[1758544218361,4.50247797,222.1,222.06,0.67]
[1758544218555,2.12514774,222.11,222.06,0.67]
[1758544219061,2.12514774,222.11,222.05,0.2]
[1758544219264,6.6274537,222.11,222.07,0.67]
[1758544219459,6.6274537,222.11,222.08,0.67]
[1758544219653,6.6274537,222.11,222.06,0.67]
[1758544219850,6.6274537,222.11,222.05,35.08]
[1758544220054,3.0277869,222.12,222.06,2.79514774]
[1758544220257,2.82514774,222.14,222.07,0.67]
[1758544220462,7.32687533,222.14,222.07,81.27]
[1758544220666,5.15293464,222.15,222.08,2.79514774]
[1758544220861,2.12514774,222.15,222.09,0.67]
[1758544221045,2.12514774,222.15,222.09,35.55]
[1758544221247,7.52924121,222.16,222.1,0.67]
[1758544221550,4.50145431,222.16,222.1,0.67]
[1758544223663,2.12514774,222.15,222.09,34.88]
[1758544223870,5.85293464,222.15,222.09,34.88]
[1758544224250,5.85293464,222.15,222.09,35.55]
[1758544224763,2.12514774,222.14,222.09,35.55]
[1758544224960,6.62694754,222.14,222.1,0.67]
[1758544226356,7.32694754,222.14,222.1,0.67]
[1758544226564,6.62694754,222.14,222.1,0.67]
[1758544228370,7.27694754,222.14,222.1,0.67]
[1758544230455,0.65,222.13,222.09,80.6]
[1758544230654,0.65,222.13,222.09,81.29]
[1758544231062,2.77514774,222.12,222.09,80.6]
[1758544231275,2.12514774,222.1,222.05,115.68]
[1758544231564,0.65,222.09,222.05,115.68]
[1758544231763,0.65,222.09,222.05,80.8]
[1758544232163,0.65,222.09,222.05,81.49]
[1758544232361,5.15270442,222.09,222.05,81.49]
[1758544232872,7.27785216,222.09,222.05,81.49]
[1758544233077,6.62785216,222.09,222.05,81.49]
[1758544233380,7.27785216,222.09,222.05,81.49]
[1758544234265,6.62785216,222.09,222.05,81.49]
[1758544234655,6.62785216,222.09,222.05,80.8]
[1758544234955,6.62785216,222.09,222.06,0.69]
[1758544235477,6.62785216,222.09,222.05,80.8]
[1758544235678,6.62785216,222.09,222.06,0.69]
[1758544236762,4.50270442,222.09,222.06,0.69]
[1758544238073,5.15270442,222.09,222.05,80.8]
[1758544238280,6.62785216,222.09,222.06,0.69]
[1758544238683,6.62785216,222.09,222.05,80.8]
[1758544238877,6.62785216,222.09,222.05,81.49]
[1758544239678,7.27785216,222.09,222.05,116.37]
[1758544239872,6.62785216,222.09,222.05,116.37]
[1758544240074,6.62785216,222.09,222.06,0.69]
[1758544240275,3.02764616,222.1,222.07,0.69]
[1758544240474,3.02764616,222.13,222.09,2.12514774]
[1758544240789,4.50149253,222.15,222.1,0.69]
[1758544240978,3.02764616,222.16,222.1,0.69]
[1758544241287,3.02764616,222.16,222.11,34.88]
[1758544241459,3.02764616,222.17,222.11,34.88]
[1758544241666,3.02764616,222.16,222.12,0.69]
[1758544241865,3.02764616,222.17,222.13,0.69]
[1758544242068,7.52891062,222.16,222.13,0.69]
[1758544242267,4.50126446,222.16,222.13,0.69]
[1758544242466,7.52891062,222.16,222.11,35.57]
[1758544242683,4.50126446,222.16,222.12,0.69]
[1758544242881,7.52891062,222.16,222.12,0.69]
[1758544243584,3.02764616,222.16,222.12,0.69]
[1758544243792,2.12514774,222.17,222.13,0.69]
[1758544243793,5.1527939,222.17,222.13,0.69]
[1758544244088,3.02764616,222.17,222.14,0.69]
[1758544244289,3.02764616,222.18,222.11,41.50740124]
[1758544244491,3.02764616,222.17,222.14,0.69]
[1758544244684,5.1527939,222.18,222.14,0.69]
[1758544244878,5.8027939,222.18,222.14,0.69]
[1758544245068,10.30374889,222.18,222.14,0.69]
[1758544245267,3.02764616,222.17,222.11,41.50740124]
[1758544245487,3.02764616,222.17,222.12,0.69]
[1758544245788,0.65,222.17,222.12,0.69]
[1758544246090,0.65,222.17,222.13,0.69]
[1758544246300,4.50126035,222.16,222.13,0.69]
[1758544246881,3.67764616,222.17,222.13,0.69]
[1758544247091,5.15116498,222.17,222.13,0.69]
[1758544247483,8.17881114,222.17,222.13,0.69]
[1758544247681,7.52881114,222.17,222.13,0.69]
[1758544249475,7.52881114,222.17,222.11,35.57]
[1758544249476,0.65,222.16,222.11,35.57]
[1758544249686,9.65395888,222.17,222.11,34.88]
[1758544249890,9.65395888,222.17,222.12,0.69]
[1758544250091,9.65395888,222.17,222.13,0.69]
[1758544250295,0.65,222.16,222.11,34.88]
[1758544250489,9.65395888,222.17,222.12,0.69]
[1758544250688,10.30395888,222.17,222.13,0.69]
[1758544251173,3.02764616,222.16,222.13,0.69]
[1758544251374,7.5289286,222.16,222.13,0.69]
[1758544251871,4.50128244,222.16,222.13,0.69]
[1758544252071,7.5289286,222.16,222.13,0.69]
[1758544252286,4.50128244,222.16,222.13,0.69]
[1758544252481,7.5289286,222.16,222.11,115.48]
[1758544252683,0.65,222.15,222.11,80.6]
[1758544252872,0.65,222.14,222.11,115.46]
[1758544253072,5.1527939,222.15,222.11,115.46]
[1758544253286,3.02764616,222.15,222.12,0.69]
[1758544253990,9.65407634,222.16,222.12,0.69]
[1758544254197,3.02764616,222.15,222.12,0.69]
[1758544255192,7.52920496,222.15,222.12,0.69]
[1758544255980,7.52920496,222.15,222.11,115.46]
[1758544256175,7.52920496,222.15,222.11,116.15]
[1758544256882,7.52920496,222.15,222.12,0.69]
[1758544257079,3.02764616,222.14,222.12,0.69]
[1758544258291,3.02764616,222.15,222.12,0.69]
[1758544258501,3.02764616,222.14,222.12,0.69]